bitfinex-derivatives/quotes_ETHF0:USTF0_20260125
["timestamp","ask_amount","ask_price","bid_price","bid_amount"]
[1769362379103,0.17357,2884.7,2883.1,2.80594444]
[1769362379296,4.023514,2884.6,2883.1,2.80594444]
[1769362379605,2.91586097,2884.8,2883.1,2.80594444]
[1769362379799,4.024068,2884.7,2883.1,2.80594444]
[1769362379995,2.91586097,2884.8,2883.1,2.80594444]
[1769362380193,4.02405875,2884.7,2883.1,2.80594444]
[1769362380402,2.91586097,2884.8,2883.1,2.80594444]
[1769362380596,4.02507965,2884.7,2883.1,2.80594444]
[1769362380801,2.91586097,2884.8,2883.1,2.80594444]
[1769362380998,4.02554602,2884.7,2883.1,2.80594444]
[1769362381198,0.00372922,2885.4,2883.4,0.17365]
[1769362381403,4.0271549,2885.3,2883.5,2.97958444]
[1769362381605,0.00372922,2885.4,2883.9,2.80594444]
[1769362381798,0.00372922,2885.4,2884.1,2.80594444]
[1769362382595,2.91959019,2885.4,2884.0,2.036]
[1769362382800,2.91959019,2885.4,2883.7,2.80594444]
[1769362383004,2.91959019,2885.4,2883.2,8.88930214]
[1769362383005,2.83912982,2885.2,2883.8,2.036]
[1769362384105,2.83912982,2885.2,2883.7,2.036]
[1769362384807,2.83912982,2885.2,2883.7,4.73693675]
[1769362385007,0.00372922,2885.4,2883.8,2.70093675]
[1769362386811,0.00372922,2885.4,2883.8,2.87456675]
[1769362387109,0.17348,2886.2,2884.1,2.87454675]
[1769362387309,4.02004708,2886.1,2884.1,2.87454675]
[1769362387505,3.01260982,2886.2,2884.1,2.87454675]
[1769362387704,4.01772648,2886.1,2884.1,2.87454675]
[1769362387904,3.01260982,2886.2,2884.1,2.87454675]
[1769362388110,3.01626029,2886.2,2884.1,2.87454675]
[1769362389720,3.01626029,2886.2,2884.3,2.70093675]
[1769362390012,3.01626029,2886.2,2884.4,2.035]
[1769362391206,3.01626029,2886.2,2884.5,2.70093675]
[1769362393410,0.00365047,2886.2,2884.5,2.70093675]
[1769362394709,0.00365047,2886.2,2884.8,2.70093675]
[1769362394913,0.00365047,2886.2,2884.8,2.70363964]
[1769362397426,2.96077295,2886.2,2884.8,0.00270289]
[1769362403020,2.95712248,2885.9,2884.8,0.00270289]
[1769362405022,2.95712248,2885.5,2883.4,2.87786982]
[1769362405221,2.95712248,2885.5,2883.5,8.38286982]
[1769362405616,2.95712248,2885.5,2883.6,2.87786982]
[1769362405821,3.13065248,2885.5,2883.6,4.91286982]
[1769362406020,2.95712248,2885.3,2883.6,0.00371527]
[1769362407421,2.95712248,2885.1,2883.6,0.00371527]
[1769362407622,3.13067248,2885.1,2883.6,0.00371527]
[1769362408132,2.95712248,2884.9,2883.6,0.00371527]
[1769362412032,2.95712248,2884.7,2883.6,0.00371527]
[1769362412840,3.13070248,2884.7,2883.6,0.00371527]
[1769362413142,3.13070248,2884.7,2882.7,4.91286982]
[1769362414239,3.13070248,2884.7,2882.7,4.91701337]
[1769362415737,3.13070248,2884.7,2882.8,2.80516183]
[1769362416348,2.77944122,2885.1,2882.8,2.80516183]
[1769362416644,2.77944122,2885.1,2883.0,2.97884183]
[1769362418646,2.95299122,2885.1,2883.0,2.97884183]
[1769362419143,2.77944122,2884.9,2883.0,2.97884183]
[1769362419736,2.95301122,2884.9,2883.0,2.80516183]
[1769362419936,2.77944122,2884.7,2882.8,2.036]
[1769362420538,2.77944122,2884.7,2882.8,4.84116183]
[1769362420738,2.77944122,2884.7,2882.8,2.80516183]
[1769362420949,2.77944122,2884.7,2882.8,4.84116183]
[1769362421141,9.13944122,2885.1,2882.9,2.97884183]
[1769362421345,2.77944122,2885.0,2882.9,2.97884183]
[1769362422750,2.77944122,2885.0,2882.9,2.80516183]
[1769362422947,2.95298122,2885.2,2882.9,2.80516183]
[1769362423450,2.95298122,2885.2,2883.1,2.80516183]
[1769362423950,2.77944122,2885.0,2883.1,2.80516183]
[1769362426953,2.95300122,2885.0,2883.1,2.80516183]
[1769362429460,2.77944122,2884.5,2882.7,0.00414355]
[1769362429656,2.77944122,2884.3,2882.7,2.80930538]
[1769362430361,2.77944122,2884.3,2882.7,0.00414355]
[1769362431356,2.77944122,2884.1,2882.7,0.00414355]
[1769362431558,2.78269372,2884.1,2882.7,0.00414355]
[1769362432751,0.0032525,2884.1,2882.7,2.80930538]
[1769362434068,2.78269372,2884.1,2882.7,0.00414355]
[1769362436665,6.80131919,2884.0,2882.7,0.00414355]
[1769362436867,2.77944122,2884.0,2882.7,0.00414355]
[1769362438371,0.0032525,2884.1,2882.8,2.80516183]
[1769362441069,0.0032525,2884.1,2883.0,2.80516183]
[1769362442469,2.77944122,2885.2,2883.4,2.80516183]
[1769362442674,0.17352,2885.6,2883.6,2.80516183]
[1769362442675,2.77944122,2885.0,2883.6,2.80516183]
[1769362443166,2.77944122,2885.0,2883.3,0.17366]
[1769362443371,2.78332055,2885.0,2883.4,2.036]
[1769362443571,2.78332055,2885.0,2883.5,2.94176712]
[1769362444372,2.96046746,2884.8,2883.1,2.94176712]
[1769362444574,2.96046746,2884.8,2883.2,2.036]
[1769362444767,2.96046746,2884.8,2883.2,4.97776712]
[1769362445280,2.96046746,2884.8,2883.3,2.94176712]
[1769362446374,0.00387933,2885.0,2883.3,2.94176712]
[1769362446572,0.00387933,2885.0,2883.5,3.11540712]
[1769362447070,0.00387933,2885.0,2883.9,2.94176712]
[1769362447272,2.96046746,2886.1,2884.1,2.94176712]
[1769362447471,4.01971326,2886.0,2884.3,2.94176712]
[1769362447673,4.01971326,2885.9,2884.3,2.94176712]
[1769362447872,2.96046746,2886.1,2884.3,2.94176712]
[1769362448074,4.0196311,2886.0,2884.3,2.94176712]
[1769362448277,0.00258931,2886.0,2884.3,2.94176712]
[1769362448580,0.00258931,2886.0,2884.3,3.11536712]
[1769362449178,2.96305677,2886.0,2884.3,2.94176712]
[1769362449371,2.96305677,2886.0,2884.2,2.036]
[1769362450079,2.96305677,2886.0,2883.8,2.94176712]
[1769362450377,2.96305677,2886.0,2884.1,2.036]
[1769362452884,2.96305677,2886.0,2884.2,2.94176712]
[1769362453589,2.96305677,2886.0,2884.1,2.036]
[1769362453782,2.96305677,2886.0,2884.2,2.94176712]
[1769362456684,2.96305677,2886.0,2884.1,2.036]
[1769362457783,0.17354,2885.3,2883.2,0.17366]
[1769362457991,2.75028448,2885.2,2883.2,0.17366]
[1769362460088,2.92382448,2885.2,2883.2,0.17366]
[1769362464095,2.92382448,2885.2,2883.2,3.07308445]
[1769362466694,2.75028448,2885.7,2883.4,3.07307445]
[1769362466991,2.75028448,2885.6,2883.6,3.07306445]
[1769362468289,2.75028448,2885.4,2883.3,2.89942445]
[1769362468599,2.03758931,2886.0,2883.3,2.89942445]
[1769362468600,2.75028448,2885.2,2883.3,2.89942445]
[1769362472201,2.92383448,2885.2,2883.3,2.89942445]
[1769362472396,2.75028448,2885.0,2883.3,2.035]
[1769362480106,0.17355,2885.1,2883.4,2.93264245]
[1769362481307,2.90573471,2885.3,2883.4,2.93264245]
[1769362481512,2.90573471,2885.3,2883.4,3.10629245]
[1769362481712,2.90573471,2885.3,2883.6,2.93264245]
[1769362484112,0.17352,2885.6,2883.6,2.93264245]
[1769362484413,4.01907623,2885.5,2883.8,2.93264245]
[1769362484610,4.01907623,2885.4,2883.8,2.93264245]
[1769362484811,2.90573471,2885.7,2883.8,2.93264245]
[1769362485010,4.01905193,2885.6,2883.8,2.93264245]
[1769362485211,4.01905193,2885.5,2883.8,2.93264245]
[1769362485411,4.01905193,2885.4,2883.8,2.93264245]
[1769362485612,2.90573471,2885.7,2883.8,2.93264245]
[1769362485813,4.02047135,2885.6,2883.8,2.93264245]
[1769362486013,4.02047135,2885.5,2883.8,2.93264245]
[1769362486213,4.02186402,2885.4,2883.8,2.93264245]
[1769362486511,2.90573471,2885.7,2883.8,2.93264245]
[1769362486711,4.02198274,2885.6,2883.8,3.10627245]
[1769362486912,2.90573471,2885.7,2883.8,3.10627245]
[1769362487303,2.90573471,2885.7,2884.0,2.93264245]
[1769362488610,2.90573471,2885.7,2884.0,3.10625245]
[1769362489608,2.90573471,2885.7,2884.0,0.17361]
[1769362490519,2.90573471,2885.7,2883.8,4.96764245]
[1769362490819,2.90573471,2885.7,2883.8,2.93264245]
[1769362491018,2.90573471,2885.7,2883.9,2.035]
[1769362492917,2.90573471,2885.5,2883.5,0.17365]
[1769362493222,0.00258931,2886.0,2883.5,0.17365]
[1769362493223,2.90573471,2885.3,2883.6,2.035]
[1769362494915,2.90573471,2885.3,2883.7,2.93264245]
[1769362496521,2.90573471,2885.1,2883.1,2.035]
[1769362497522,2.90573471,2884.9,2883.1,2.035]
[1769362497726,2.90573471,2884.9,2882.9,2.93264245]
[1769362497727,2.90573471,2884.7,2882.9,2.93264245]
[1769362498024,2.90573471,2884.5,2882.9,2.93264245]
[1769362500424,3.07933471,2884.3,2882.1,2.93264245]
[1769362500619,4.94073471,2884.7,2882.7,2.936786]
[1769362500820,2.90573471,2884.5,2882.7,2.936786]
[1769362501426,2.90573471,2884.9,2882.9,2.93264245]
[1769362501725,2.90573471,2885.3,2883.1,2.93264245]
[1769362501927,6.92870552,2885.2,2883.3,2.93264245]
[1769362502124,2.90573471,2885.6,2883.7,2.93264245]
[1769362502324,4.02284572,2885.5,2883.7,2.93264245]
[1769362502626,2.90832402,2886.0,2883.7,3.10627245]
[1769362502828,2.90573471,2885.8,2883.7,3.10627245]
[1769362503130,2.58823358,2885.6,2883.7,3.10627245]
[1769362504829,2.59082289,2886.0,2883.9,3.00378188]
[1769362505025,4.02313834,2885.9,2883.9,3.00378188]
[1769362505222,2.59082289,2886.0,2883.9,3.00378188]
[1769362505519,4.02281634,2885.9,2883.9,3.00378188]
[1769362505716,2.59082289,2886.0,2883.9,3.00378188]
[1769362505917,4.02277283,2885.9,2883.9,3.00378188]
[1769362506116,2.59082289,2886.0,2883.9,3.00378188]
[1769362506317,4.02236617,2885.9,2883.9,3.00378188]
[1769362506521,2.59082289,2886.0,2883.9,3.00378188]
[1769362506721,2.58823358,2885.8,2883.9,3.00378188]
[1769362508628,2.58823358,2885.8,2884.1,2.83016188]
[1769362508828,2.58823358,2885.8,2884.2,4.86516188]
[1769362509329,2.58823358,2885.8,2884.3,2.83016188]
[1769362510532,2.58823358,2885.8,2884.2,2.035]
[1769362510839,2.58823358,2885.8,2884.2,4.86516188]
[1769362511030,0.00258931,2886.0,2884.5,2.83016188]
[1769362511336,0.00258931,2886.0,2884.5,3.00374188]
[1769362512136,0.00258931,2886.0,2884.6,0.17358]
[1769362512337,0.00258931,2886.0,2885.1,2.83016188]
[1769362512538,2.58823358,2887.0,2885.2,2.83016188]
[1769362512735,2.58823358,2886.8,2885.2,2.83016188]
[1769362512934,2.58823358,2886.8,2885.2,2.035]
[1769362513636,2.59181063,2886.8,2885.2,2.035]
[1769362514741,0.00357705,2886.8,2885.3,2.83016188]
[1769362515041,0.00357705,2886.8,2885.6,3.00368188]
[1769362517636,0.00357705,2886.8,2885.7,2.99547869]
[1769362518042,3.07933459,2887.6,2885.7,2.99547869]
[1769362519239,3.08251859,2887.6,2885.7,2.99547869]
[1769362520949,0.003184,2887.6,2885.9,2.99547869]
[1769362521241,3.08251859,2887.6,2885.9,2.99547869]
[1769362521847,0.003184,2887.6,2885.9,2.99547869]
[1769362528948,3.08251859,2887.6,2886.1,2.99547869]
[1769362529539,0.003184,2887.6,2886.1,2.99547869]
[1769362530351,0.003184,2887.6,2886.3,2.99547869]
[1769362530856,0.003184,2887.6,2886.5,0.17347]
[1769362531047,0.003184,2887.6,2886.6,2.034]
[1769362531850,3.08251859,2887.6,2885.9,3.16897869]
[1769362532154,3.08251859,2887.6,2885.9,2.99547869]
[1769362534155,3.08251859,2887.6,2885.7,2.034]
[1769362534448,2.85534188,2887.4,2885.7,2.034]
[1769362538454,2.85534188,2887.2,2885.7,2.034]
[1769362538655,2.85534188,2887.2,2885.6,2.034]
[1769362538852,2.85534188,2887.2,2885.1,2.72104965]
[1769362539058,2.85534188,2887.0,2885.2,2.034]
[1769362539354,2.85534188,2886.8,2885.2,2.034]
[1769362539655,2.85534188,2886.8,2885.2,4.75177679]
[1769362539856,2.85534188,2886.8,2885.3,2.71777679]
[1769362540054,0.003184,2887.6,2885.3,2.71777679]
[1769362540355,4.01123716,2887.5,2886.0,2.71777679]
[1769362540558,0.003184,2887.6,2886.2,2.71777679]
[1769362542455,0.003184,2887.6,2886.2,2.89125679]
[1769362544359,0.003184,2887.6,2886.4,2.89124679]
[1769362550261,0.003184,2887.6,2886.6,2.71777679]
[1769362550467,0.003184,2887.6,2886.6,2.89123679]
[1769362552968,0.003184,2887.6,2886.7,2.034]
[1769362555772,0.003184,2887.6,2886.6,2.89123679]
[1769362555973,0.003184,2887.6,2886.7,2.033]
[1769362556678,2.85852588,2887.6,2886.5,2.033]
[1769362557374,2.85852588,2887.6,2886.1,2.71777679]
[1769362557675,2.85852588,2887.6,2886.2,2.033]
[1769362558176,2.85852588,2887.6,2886.3,2.033]
[1769362559473,2.85852588,2887.6,2885.7,2.71777679]
[1769362559672,2.85852588,2887.6,2886.0,2.033]
[1769362559879,2.85534188,2887.4,2886.0,2.033]
[1769362560374,4.00988574,2887.3,2885.5,0.17353]
[1769362560573,1.17832102,2887.6,2885.5,0.17353]
[1769362560574,2.85534188,2887.1,2885.5,2.20653]
[1769362560778,2.85534188,2887.5,2885.6,2.89129679]
[1769362562772,2.85534188,2887.5,2885.8,2.71777679]
[1769362563282,2.85534188,2887.5,2885.8,2.89128679]
[1769362563483,0.003184,2887.6,2885.8,2.89128679]
[1769362563775,0.003184,2887.6,2886.2,2.67218194]
[1769362563982,0.003184,2887.6,2886.4,2.84565194]
[1769362565382,0.003184,2887.6,2886.5,2.034]
[1769362565581,2.83775667,2887.6,2886.0,2.67218194]
[1769362565979,2.83775667,2887.6,2886.1,2.034]
[1769362570182,0.003184,2887.6,2886.3,2.67218194]
[1769362570387,0.003184,2887.6,2886.3,2.84566194]
[1769362572089,0.003184,2887.6,2886.4,2.034]
[1769362572289,0.003184,2887.6,2886.3,2.84566194]
[1769362572493,0.003184,2887.6,2886.4,2.034]
[1769362573591,0.003184,2887.6,2886.3,2.67218194]
[1769362573792,0.003184,2887.6,2886.3,4.70618194]
[1769362578300,0.003184,2887.6,2886.4,2.6458606]
[1769362578996,0.003184,2887.6,2886.4,2.8193306]
[1769362580999,0.003184,2887.6,2886.6,2.6458606]
[1769362583102,0.003184,2887.6,2886.6,4.6788606]
[1769362585196,0.003184,2887.6,2886.7,2.6458606]
[1769362595106,2.78337022,2888.3,2886.7,2.6458606]
[1769362596006,2.78709822,2888.3,2886.7,2.6458606]
[1769362596214,4.01600513,2888.2,2886.7,2.6458606]
[1769362596411,2.78709822,2888.3,2886.7,2.6458606]
[1769362596712,4.01600474,2888.2,2886.7,2.6458606]
[1769362596914,2.78709822,2888.3,2886.7,2.6458606]
[1769362597207,6.80867838,2888.2,2886.7,2.6458606]
[1769362597413,2.79292798,2888.2,2886.7,2.6458606]
[1769362606115,4.01701834,2888.1,2886.7,2.6458606]
[1769362606314,2.79292798,2888.2,2886.7,2.6458606]
[1769362606516,4.01701785,2888.1,2886.7,2.6458606]
[1769362606816,2.79292798,2888.2,2886.7,2.6458606]
[1769362607918,4.02268992,2888.1,2886.7,2.6458606]
[1769362608118,2.79292798,2888.2,2886.7,2.6458606]
[1769362608410,4.025019,2888.1,2886.7,2.6458606]
[1769362608607,2.79292798,2888.2,2886.7,2.6458606]
[1769362612218,0.003728,2888.3,2886.7,2.8193106]
[1769362613020,0.003728,2888.3,2886.9,2.76315398]
[1769362613220,0.003728,2888.3,2887.3,2.76315398]
[1769362613521,0.003728,2888.3,2887.3,4.7997661]
[1769362614617,2.79292798,2889.0,2887.4,2.76315398]
[1769362614921,2.79292798,2889.4,2887.7,2.76315398]
[1769362615120,6.8159207,2889.3,2887.7,2.76315398]
[1769362615422,4.02299272,2889.2,2887.7,2.76315398]
[1769362615608,2.79292798,2889.3,2887.7,2.76315398]
[1769362615814,2.79292798,2889.1,2887.7,2.76315398]
[1769362616113,2.79292798,2889.1,2887.5,2.033]
[1769362616114,2.79292798,2889.0,2887.5,2.033]
[1769362617316,2.79292798,2889.0,2887.3,2.7667661]
[1769362617517,2.79292798,2889.0,2887.4,2.033]
[1769362618026,2.79292798,2889.0,2887.5,2.76315398]
[1769362621225,0.00305062,2889.2,2887.5,2.93655398]
[1769362622123,2.79292798,2889.0,2887.5,2.93655398]
[1769362622323,2.79292798,2889.0,2887.3,0.00361212]
[1769362622526,2.79292798,2889.0,2887.4,2.033]
[1769362623916,2.79292798,2889.0,2887.5,2.77457694]
[1769362626220,2.79292798,2889.0,2887.4,2.033]
[1769362627030,2.79292798,2889.0,2887.3,0.00361212]
[1769362627230,2.69522789,2888.8,2887.3,0.00361212]
[1769362629324,2.69827851,2889.2,2887.5,2.77457694]
[1769362629728,2.69827851,2889.2,2887.5,2.94798694]
[1769362629932,2.69827851,2889.2,2887.7,2.77457694]
[1769362632832,2.64827851,2889.2,2887.7,2.77457694]
[1769362634030,2.65208932,2889.2,2887.7,2.77457694]
[1769362637028,0.00381081,2889.2,2887.7,2.77457694]
[1769362637333,0.00381081,2889.2,2887.9,2.89245408]
[1769362637634,0.00381081,2889.2,2888.1,2.89245408]
[1769362638231,0.00381081,2889.2,2888.2,3.70802172]
[1769362638429,2.84593817,2890.0,2888.3,2.89245408]
[1769362638627,2.84593817,2890.0,2888.0,2.033]
[1769362638628,2.84593817,2889.8,2888.0,2.033]
[1769362639437,2.84593817,2889.4,2887.9,2.89245408]
[1769362639635,0.81512813,2889.0,2887.9,4.92545408]
[1769362639940,0.81512813,2889.0,2887.7,2.033]
[1769362640643,3.6610663,2889.5,2888.1,0.81512813]
[1769362641737,3.6610663,2889.5,2888.1,3.70758221]
[1769362646744,0.81512813,2889.3,2888.1,3.70758221]
[1769362650047,3.6610663,2889.5,2888.2,2.89245408]
[1769362651143,0.81512813,2889.3,2888.1,0.81512813]
[1769362651343,0.81512813,2889.3,2888.0,2.032]
[1769362651344,3.6610663,2889.3,2888.0,2.032]
[1769362653152,0.81512813,2889.1,2888.0,2.032]
[1769362653450,0.81512813,2888.9,2887.8,2.89245408]
[1769362653652,0.81512813,2888.7,2887.4,3.04039992]
[1769362653857,0.81512813,2888.5,2887.3,2.20902212]
[1769362654352,0.81512813,2888.3,2887.3,0.00361212]
[1769362654565,0.81512813,2888.1,2887.3,0.00361212]
[1769362654859,0.81512813,2888.3,2887.3,0.00361212]
[1769362655256,0.81512813,2887.9,2887.3,0.00361212]
[1769362655455,0.81512813,2887.9,2886.6,5.07339992]
[1769362655753,0.81512813,2887.9,2886.6,3.04039992]
[1769362656559,0.81512813,2888.1,2886.7,0.81512813]
[1769362658755,0.81512813,2888.1,2886.7,3.85552805]
[1769362658957,3.13364179,2888.3,2887.1,0.81512813]
[1769362659855,3.94876992,2888.3,2886.9,3.85552805]
[1769362662655,0.81512813,2888.5,2887.1,0.81512813]
[1769362662860,0.81512813,2888.5,2887.1,3.85552805]
[1769362663252,3.94876992,2888.7,2887.3,0.81512813]
[1769362663654,3.94876992,2889.1,2887.7,3.85552805]
[1769362663955,0.81512813,2888.9,2887.7,0.81512813]
[1769362664160,3.94876992,2888.9,2887.5,0.81512813]
[1769362664357,0.81512813,2888.7,2887.5,0.81512813]
[1769362664561,0.81512813,2888.7,2887.4,2.033]
[1769362666564,3.13364179,2888.8,2887.5,0.81512813]
[1769362667760,0.81512813,2888.2,2886.9,3.85552805]
[1769362668066,0.81512813,2888.0,2886.9,3.04039992]
[1769362668867,0.17333,2888.8,2887.1,3.85552805]
[1769362668868,0.81512813,2888.6,2887.1,3.85552805]
[1769362669166,4.12209992,2888.8,2887.3,3.85552805]
[1769362669367,0.81512813,2888.6,2887.3,3.85552805]
[1769362669563,0.81512813,2888.6,2887.3,0.81512813]
[1769362669767,0.81512813,2888.6,2886.8,2.033]
[1769362669768,0.81512813,2888.6,2887.1,0.81512813]
[1769362669964,0.81512813,2888.4,2887.1,0.81512813]
[1769362672070,0.81512813,2888.4,2887.1,3.85552805]
[1769362673174,0.81512813,2888.6,2887.3,0.81512813]
[1769362678277,4.00612317,2888.5,2887.3,0.81512813]
[1769362678577,0.81512813,2888.6,2887.3,0.81512813]
[1769362678774,4.00612266,2888.5,2887.3,0.81512813]
[1769362678975,0.81512813,2888.6,2887.3,0.81512813]
[1769362679172,4.00612228,2888.5,2887.3,0.81512813]
[1769362679368,0.81512813,2888.6,2887.3,0.81512813]
[1769362679574,4.00725441,2888.5,2887.3,0.81512813]
[1769362679770,0.81512813,2888.6,2887.3,0.81512813]
[1769362679967,4.00725239,2888.5,2887.3,0.81512813]
[1769362680273,0.81512813,2888.6,2887.3,0.81512813]
[1769362680474,4.00816607,2888.5,2887.3,0.81512813]
[1769362680671,0.81512813,2888.6,2887.2,3.04039992]
[1769362680874,0.81512813,2888.4,2887.2,3.04039992]
[1769362683476,0.81512813,2888.0,2886.8,2.6382411]
[1769362685580,0.81512813,2887.8,2886.6,0.00326184]
[1769362688286,0.81512813,2888.0,2886.6,2.64150294]
[1769362688781,0.81512813,2888.0,2886.7,0.81512813]
[1769362689082,0.17336,2888.3,2886.9,3.45336923]
[1769362689281,4.01296588,2888.2,2886.9,3.45336923]
[1769362689577,0.81512813,2888.4,2886.9,3.45336923]
[1769362689782,4.0127926,2888.3,2886.9,3.45336923]
[1769362689982,0.81512813,2888.4,2886.9,3.45336923]
[1769362690183,4.01279309,2888.3,2886.9,3.45336923]
[1769362690384,0.81512813,2888.4,2886.9,3.45336923]
[1769362690584,4.01360224,2888.3,2886.9,3.45336923]
[1769362690786,0.81512813,2888.4,2887.0,2.6382411]
[1769362692989,0.81512813,2888.4,2887.1,0.81512813]
[1769362695992,0.81512813,2888.4,2887.1,3.49623309]
[1769362696491,0.98845813,2888.8,2887.3,3.49623309]
[1769362696683,0.81512813,2888.6,2887.3,3.49623309]
[1769362697391,4.01631796,2888.5,2887.3,3.49623309]
[1769362697592,0.81512813,2888.6,2887.3,3.49623309]
[1769362697888,4.01610967,2888.5,2887.3,3.49623309]
[1769362698094,0.81512813,2888.6,2887.3,3.49623309]
[1769362698387,4.01603254,2888.5,2887.4,2.68110496]
[1769362698685,0.81512813,2888.6,2887.4,2.68110496]
[1769362699991,0.81512813,2888.8,2887.6,2.68110496]
[1769362701086,2.59877502,2888.9,2887.6,2.68110496]
[1769362701384,0.81512813,2889.2,2887.8,2.68110496]
[1769362701586,4.01488778,2889.1,2887.8,2.68110496]
[1769362701784,4.01488778,2889.0,2887.8,2.68110496]
[1769362701986,2.77207502,2889.3,2887.8,2.68110496]
[1769362702185,4.01547235,2889.2,2887.8,2.68110496]
[1769362702381,4.01547235,2889.1,2887.8,2.68110496]
[1769362702585,4.01547235,2889.0,2887.8,2.68110496]
[1769362702786,2.59877502,2889.3,2887.8,2.68110496]
[1769362702991,4.01456464,2889.2,2887.8,2.68110496]
[1769362703191,2.59877502,2889.3,2887.8,2.68110496]
[1769362703392,4.01441272,2889.2,2887.8,2.68110496]
[1769362703595,2.59877502,2889.3,2887.8,2.68110496]
[1769362703792,4.01512996,2889.2,2887.8,2.68110496]
[1769362703993,2.59877502,2889.3,2887.8,2.68110496]
[1769362704193,4.01535895,2889.2,2887.8,2.68110496]
[1769362704397,2.59877502,2889.3,2887.8,2.68110496]
[1769362704693,4.01407876,2889.2,2887.8,2.68110496]
[1769362704889,2.59877502,2889.3,2887.8,2.68110496]
[1769362705094,2.59877502,2889.1,2887.4,2.68110496]
[1769362705393,2.03749215,2889.8,2887.4,2.033]
[1769362705394,2.59877502,2888.8,2887.4,2.033]
[1769362705596,2.59877502,2888.6,2887.1,3.466]
[1769362706300,2.59877502,2888.0,2886.6,2.8578268]
[1769362710999,2.59877502,2888.4,2886.6,2.8578268]
[1769362711199,4.0104294,2888.3,2886.7,2.68110496]
[1769362711394,2.59877502,2888.8,2886.7,2.68110496]
[1769362711598,6.60923882,2888.7,2886.7,2.68110496]
[1769362711802,4.0104638,2888.6,2886.7,2.68110496]
[1769362711997,4.0104638,2888.5,2886.7,2.68110496]
[1769362712199,4.0104638,2888.4,2886.7,2.85455496]
[1769362712398,2.59877502,2888.7,2886.7,2.85455496]
[1769362712603,4.01146912,2888.6,2886.7,2.85455496]
[1769362712800,2.59877502,2888.7,2886.9,2.68110496]
[1769362713102,2.86076725,2889.1,2887.1,2.87895026]
[1769362713305,4.01302642,2889.0,2887.1,2.87895026]
[1769362713502,2.86076725,2889.1,2887.1,2.87895026]
[1769362713703,4.01273207,2889.0,2887.1,2.87895026]
[1769362713905,2.86076725,2889.1,2887.1,2.87895026]
[1769362714102,4.01270254,2889.0,2887.1,2.87895026]
[1769362714299,2.86076725,2889.1,2887.1,2.87895026]
[1769362714500,4.01243115,2889.0,2887.1,3.05238026]
[1769362714803,2.68745725,2889.1,2887.3,2.87895026]
[1769362714999,2.68745725,2889.1,2887.4,2.033]
[1769362715311,2.68745725,2889.1,2887.5,2.87895026]
[1769362715802,2.68745725,2889.5,2887.5,2.87895026]
[1769362716010,6.70032707,2889.4,2887.5,2.87895026]
[1769362716214,4.01286982,2889.3,2887.5,2.87895026]
[1769362717409,4.01286982,2889.3,2887.5,3.05235026]
[1769362718313,4.01286982,2889.3,2887.5,2.87895026]
[1769362718515,0.17325,2890.2,2888.2,2.87895026]
[1769362718709,2.86070725,2890.2,2888.4,2.87895026]
[1769362718910,2.68745725,2890.2,2888.4,2.87895026]
[1769362719508,2.69135744,2890.2,2888.4,2.87895026]
[1769362720015,2.68745725,2890.0,2888.1,2.033]
[1769362720410,2.68745725,2890.0,2888.2,2.033]
[1769362720411,2.86071725,2890.0,2888.2,2.033]
[1769362721711,2.86071725,2890.0,2888.3,2.87895026]
[1769362722917,2.86071725,2890.0,2888.1,0.17337]
[1769362723308,2.68745725,2889.8,2887.8,4.91195026]
[1769362723509,0.00390019,2890.2,2887.4,3.05236026]
[1769362723510,2.86075725,2889.4,2887.4,3.05236026]
[1769362723817,2.86075725,2889.4,2887.5,2.033]
[1769362729018,2.86075725,2889.4,2887.6,2.87895026]
[1769362730115,2.68745725,2889.4,2887.6,2.87895026]
[1769362730417,2.68745725,2889.4,2887.6,3.05235026]
[1769362731518,2.68745725,2889.8,2887.8,2.87895026]
[1769362731812,2.68745725,2889.8,2887.8,3.05234026]
[1769362732020,2.68745725,2889.8,2888.0,2.87895026]
[1769362738025,2.68745725,2889.8,2888.1,6.34495026]
[1769362738221,2.68745725,2889.8,2888.1,2.032]
[1769362738523,2.68745725,2889.8,2887.9,2.20538]
[1769362738723,2.68745725,2889.6,2887.9,2.032]
[1769362738925,2.68745725,2889.6,2887.7,2.87895026]
[1769362739126,2.86073725,2889.6,2887.8,2.032]
[1769362739728,2.68745725,2889.4,2887.8,2.032]
[1769362741422,2.68745725,2889.4,2887.7,2.87895026]
[1769362741623,2.68745725,2889.4,2887.7,4.91095026]
[1769362742121,2.68745725,2889.4,2887.8,2.87895026]
[1769362742521,2.68745725,2889.9,2887.8,2.87895026]
[1769362742722,0.00390019,2890.2,2888.4,2.87895026]
[1769362744331,0.00390019,2890.2,2888.4,3.05230026]
[1769362744829,0.00390019,2890.2,2888.8,2.8332435]
[1769362745027,0.00390019,2890.2,2889.0,2.8332435]
[1769362748229,0.00390019,2890.2,2889.1,2.032]
[1769362748935,0.00390019,2890.2,2889.2,2.8332435]
[1769362749128,2.69460881,2891.2,2889.2,2.8332435]
[1769362749431,3.94921883,2891.1,2889.2,2.8332435]
[1769362749630,2.69460881,2891.2,2889.2,2.8332435]
[1769362750139,2.69881575,2891.2,2889.2,2.8332435]
[1769362750637,2.69881575,2891.2,2889.4,2.8332435]
[1769362751333,2.69881575,2891.2,2889.5,8.3302435]
[1769362751533,2.69881575,2891.2,2889.6,2.8332435]
[1769362751731,0.00420694,2891.2,2889.6,2.8332435]
[1769362752836,2.87200575,2891.2,2889.7,2.032]
[1769362753741,0.00420694,2891.2,2889.8,2.8332435]
[1769362756033,0.00420694,2891.2,2889.4,0.17329]
[1769362756034,2.66855259,2891.2,2889.4,2.52127073]
[1769362756235,2.66435565,2891.0,2888.9,2.52127073]
[1769362756532,2.49115565,2891.0,2888.9,2.52127073]
[1769362756738,2.49115565,2890.5,2889.0,3.464]
[1769362756940,2.49115565,2890.5,2889.1,2.032]
[1769362757441,2.49115565,2890.5,2889.1,4.55327073]
[1769362757638,2.49115565,2890.5,2889.1,2.52127073]
[1769362757833,2.49115565,2890.5,2889.2,2.032]
[1769362759340,2.49115565,2890.2,2889.0,2.032]
[1769362759529,2.66440565,2890.2,2888.8,0.00433577]
[1769362765741,2.49115565,2890.0,2888.8,0.00433577]
[1769362766049,2.66442565,2889.8,2888.8,0.00433577]
[1769362766244,2.49115565,2889.6,2887.7,3.464]
[1769362766440,1.17293799,2889.8,2887.7,3.464]
[1769362766441,2.49115565,2889.4,2887.7,3.464]
[1769362766637,0.17332,2889.0,2887.7,3.464]
[1769362766945,2.66447565,2888.9,2887.1,2.032]
[1769362767142,2.49115565,2888.7,2887.1,0.00321112]
[1769362767343,2.49115565,2888.7,2887.1,2.03521112]
[1769362767942,2.49115565,2888.7,2887.2,2.52127073]
[1769362768138,2.66448565,2888.8,2887.2,2.52127073]
[1769362773748,0.17333,2888.8,2887.2,2.52127073]
[1769362774050,2.80808475,2888.8,2887.2,2.52127073]